bitfinex/quotes_BTCUSD_20250813
["timestamp","ask_amount","ask_price","bid_price","bid_amount"]
[1755103260801,0.09865073,121260.0,121250.0,0.58515275]
[1755103261008,0.11165073,121260.0,121250.0,0.59468389]
[1755103261215,0.11265073,121260.0,121250.0,0.59568389]
[1755103261424,0.11565073,121260.0,121250.0,0.58515275]
[1755103261666,0.08672325,121260.0,121250.0,1.19622154]
[1755103261851,0.10672325,121260.0,121250.0,1.34163268]
[1755103262051,0.10672325,121260.0,121250.0,1.20675268]
[1755103262257,0.10672325,121260.0,121250.0,1.23883268]
[1755103262461,0.10672325,121260.0,121250.0,1.44399268]
[1755103262672,0.11565073,121260.0,121250.0,1.24635268]
[1755103262902,0.11565073,121260.0,121250.0,0.93564389]
[1755103263114,0.11565073,121260.0,121250.0,1.38115268]
[1755103263746,0.11565073,121260.0,121250.0,1.24635268]
[1755103263968,0.11565073,121260.0,121250.0,0.93560389]
[1755103264177,0.11565073,121260.0,121250.0,0.79031275]
[1755103264392,0.11565073,121260.0,121250.0,0.47769396]
[1755103264603,0.11822783,121260.0,121250.0,0.13769396]
[1755103264827,0.12124783,121260.0,121250.0,0.13769396]
[1755103265059,0.12124783,121260.0,121250.0,0.13773396]
[1755103266871,0.38754783,121260.0,121250.0,0.13761396]
[1755103267120,0.38497073,121260.0,121250.0,0.13761396]
[1755103267336,0.36195073,121260.0,121250.0,0.44844275]
[1755103267547,0.38195073,121260.0,121250.0,0.58336275]
[1755103267760,0.38195073,121260.0,121250.0,0.44844275]
[1755103267975,0.38195073,121260.0,121250.0,0.58519275]
[1755103268197,0.38195073,121260.0,121250.0,1.37693342]
[1755103268415,0.38195073,121260.0,121250.0,0.79654463]
[1755103268629,0.10672325,121260.0,121250.0,1.24205342]
[1755103268836,0.11565073,121260.0,121250.0,0.48587584]
[1755103269043,0.11565073,121260.0,121250.0,1.37693342]
[1755103269256,0.11565073,121260.0,121250.0,0.34916584]
[1755103269495,0.11565073,121260.0,121250.0,0.47781396]
[1755103269712,0.11565073,121260.0,121250.0,0.92348275]
[1755103269916,0.11565073,121260.0,121250.0,0.78844275]
[1755103270119,0.11565073,121260.0,121250.0,0.92344275]
[1755103270372,0.11565073,121260.0,121250.0,0.79031275]
[1755103270574,0.11565073,121260.0,121250.0,1.2406936]
[1755103270824,0.11565073,121260.0,121250.0,1.3756536]
[1755103271255,0.11565073,121260.0,121250.0,1.3755736]
[1755103271639,0.11565073,121260.0,121250.0,1.6759736]
[1755103271892,0.11565073,121260.0,121250.0,1.5410936]
[1755103272080,0.11565073,121260.0,121250.0,0.78495602]
[1755103272297,0.11565073,121260.0,121250.0,1.09558481]
[1755103272506,0.11565073,121260.0,121250.0,1.6760936]
[1755103272635,0.11565073,121260.0,121250.0,1.5733336]
[1755103273302,0.11565073,121260.0,121250.0,0.99282481]
[1755103273502,0.11565073,121260.0,121250.0,1.12786481]
[1755103274267,0.11565073,121260.0,121250.0,0.67748396]
[1755103274469,0.11565073,121260.0,121250.0,0.47809396]
[1755103274708,0.11565073,121260.0,121250.0,0.00293396]
[1755103274709,0.12124783,121260.0,121250.0,0.00293396]
[1755103274917,0.12124783,121260.0,121250.0,0.58360275]
[1755103275323,0.11822783,121260.0,121250.0,0.00293396]
[1755103275495,0.11822783,121260.0,121250.0,0.58388275]
[1755103275699,0.11822783,121260.0,121250.0,0.44844275]
[1755103275912,0.11822783,121260.0,121250.0,0.13845396]
[1755103276129,0.11822783,121260.0,121250.0,0.00293396]
[1755103276355,0.13673538,121260.0,121250.0,0.58420275]
[1755103276563,0.11822783,121260.0,121250.0,0.58420275]
[1755103276763,0.12124783,121260.0,121250.0,0.58420275]
[1755103276964,0.11822783,121260.0,121250.0,0.44844275]
[1755103277175,0.11822783,121260.0,121250.0,0.58444275]
[1755103277579,0.11565073,121260.0,121250.0,0.58444275]
[1755103278003,0.11565073,121260.0,121250.0,0.44844275]
[1755103278216,0.11565073,121260.0,121250.0,0.58444275]
[1755103278432,0.11822783,121260.0,121250.0,0.13889396]
[1755103278613,0.11822783,121260.0,121250.0,0.58440275]
[1755103279507,0.11822783,121260.0,121250.0,0.13889396]
[1755103279722,0.11822783,121260.0,121250.0,0.58440275]
[1755103279926,0.12124783,121260.0,121250.0,0.58440275]
[1755103280346,0.12124783,121260.0,121250.0,0.13889396]
[1755103280554,0.12124783,121260.0,121250.0,0.58440275]
[1755103280789,0.12124783,121260.0,121250.0,0.44844275]
[1755103281032,0.12124783,121260.0,121250.0,0.58444275]
[1755103281253,0.12124783,121260.0,121250.0,0.58440275]
[1755103281464,0.12124783,121260.0,121250.0,0.68716275]
[1755103281687,0.12124783,121260.0,121250.0,0.88480275]
[1755103282101,0.12124783,121260.0,121250.0,0.30333396]
[1755103282377,0.12124783,121260.0,121250.0,0.88476275]
[1755103282585,0.12124783,121260.0,121250.0,0.33649396]
[1755103282800,0.12124783,121260.0,121250.0,0.78204275]
[1755103283012,0.12124783,121260.0,121250.0,0.00293396]
[1755103283228,0.12124783,121260.0,121250.0,0.13889396]
[1755103283594,0.13869685,121260.0,121250.0,0.13889396]
[1755103283799,0.16175131,121260.0,121250.0,0.13889396]
[1755103283999,0.16175131,121260.0,121250.0,0.00293396]
[1755103284233,0.16175131,121260.0,121250.0,0.13889396]
[1755103284402,0.16175131,121260.0,121250.0,0.58444275]
[1755103284403,0.14430229,121260.0,121250.0,0.58444275]
[1755103284609,0.09565073,121260.0,121250.0,0.44844275]
[1755103284831,0.09822783,121260.0,121250.0,0.58444275]
[1755103285200,0.08930035,121260.0,121250.0,0.58444275]
[1755103285485,0.08930035,121260.0,121250.0,0.89395154]
[1755103285486,0.11565073,121260.0,121250.0,0.89395154]
[1755103285708,0.11565073,121260.0,121250.0,1.36999154]
[1755103285912,0.10672325,121260.0,121250.0,1.23582154]
[1755103286162,0.11565073,121260.0,121250.0,1.37190154]
[1755103286782,0.11565073,121260.0,121250.0,0.48088396]
[1755103286982,0.11565073,121260.0,121250.0,1.37190154]
[1755103287778,0.11565073,121260.0,121250.0,1.37186154]
[1755103288652,0.11547689,121260.0,121250.0,1.37186154]
[1755103289348,0.10654941,121260.0,121250.0,1.37186154]
[1755103289586,0.10654941,121260.0,121250.0,0.48084396]
[1755103289587,0.11547689,121260.0,121250.0,0.48084396]
[1755103289819,0.11547689,121260.0,121250.0,0.92448275]
[1755103290331,0.11547689,121260.0,121250.0,0.92424275]
[1755103290541,0.11805399,121260.0,121250.0,0.92424275]
[1755103290982,0.11805399,121260.0,121250.0,0.78844275]
[1755103291215,0.11805399,121260.0,121250.0,0.47873396]
[1755103291432,0.11805399,121260.0,121250.0,0.92424275]
[1755103291433,0.12114399,121260.0,121250.0,0.92424275]
[1755103291649,0.12114399,121260.0,121250.0,1.22464275]
[1755103291849,0.12114399,121260.0,121250.0,0.77913396]
[1755103292070,0.11805399,121260.0,121250.0,1.22464275]
[1755103293594,0.12114399,121260.0,121250.0,1.22464275]
[1755103293858,0.12321399,121260.0,121250.0,1.22464275]
[1755103294723,0.12321399,121260.0,121250.0,1.08884275]
[1755103294945,0.12321399,121260.0,121250.0,0.64333396]
[1755103295172,0.12321399,121260.0,121250.0,1.12172275]
[1755103295383,0.12321399,121260.0,121250.0,0.67621396]
[1755103295596,0.12321399,121260.0,121250.0,0.98608275]
[1755103295813,0.12321399,121260.0,121250.0,0.92412275]
[1755103296045,0.12321399,121260.0,121250.0,0.34293396]
[1755103296271,0.12321399,121260.0,121250.0,0.92452275]
[1755103297215,0.11805399,121260.0,121250.0,0.92660275]
[1755103297450,0.11805399,121260.0,121250.0,0.34501396]
[1755103297744,0.11805399,121260.0,121250.0,0.92648275]
[1755103297978,0.11805399,121260.0,121250.0,0.79052275]
[1755103298211,0.09547689,121260.0,121250.0,1.2384052]
[1755103298440,0.11547689,121260.0,121250.0,0.48097396]
[1755103298654,0.11547689,121260.0,121250.0,1.37199154]
[1755103298869,0.11805399,121260.0,121250.0,0.79052275]
[1755103299077,0.11805399,121260.0,121250.0,0.92652275]
[1755103299913,0.12012399,121260.0,121250.0,0.92652275]
[1755103300063,0.12321399,121260.0,121250.0,0.92652275]
[1755103300287,0.11805399,121260.0,121250.0,0.79052275]
[1755103300495,0.10654941,121260.0,121250.0,1.23790154]
[1755103300700,0.11547689,121260.0,121250.0,0.34688396]
[1755103300896,0.11805399,121260.0,121250.0,0.92720275]
[1755103301159,0.11805399,121260.0,121250.0,0.79052275]
[1755103301318,0.11805399,121260.0,121250.0,0.92740275]
[1755103301540,0.11805399,121260.0,121250.0,1.22780275]
[1755103301968,0.11805399,121260.0,121250.0,0.78229396]
[1755103302341,0.12012399,121260.0,121250.0,1.08884275]
[1755103302542,0.12321399,121260.0,121250.0,1.12304275]
[1755103302781,0.12321399,121260.0,121250.0,0.98608275]
[1755103302954,0.12321399,121260.0,121250.0,1.12304275]
[1755103303348,0.12321399,121260.0,121250.0,0.33745396]
[1755103303564,0.18422301,121260.0,121250.0,0.00293396]
[1755103303744,0.18164591,121260.0,121250.0,0.00293396]
[1755103304029,0.18164591,121260.0,121250.0,0.13973396]
[1755103304234,0.20664591,121260.0,121250.0,0.00293396]
[1755103304620,0.20664591,121260.0,121250.0,0.13973396]
[1755103304863,0.27854615,121260.0,121250.0,0.13973396]
[1755103305066,0.30254615,121260.0,121250.0,0.13973396]
[1755103305272,0.23064591,121260.0,121250.0,0.13973396]
[1755103305484,0.23364591,121260.0,121250.0,0.14073396]
[1755103305871,0.23064591,121260.0,121250.0,0.13973396]
[1755103306076,0.57064591,121260.0,121250.0,0.00293396]
[1755103306283,0.57464591,121260.0,121250.0,0.14061396]
[1755103306490,0.65713034,121260.0,121250.0,0.00393396]
[1755103306902,0.65413034,121260.0,121250.0,0.00293396]
[1755103307073,0.65413034,121260.0,121250.0,0.14049396]
[1755103307414,0.65413034,121260.0,121250.0,0.13949396]
[1755103307833,0.66013034,121260.0,121250.0,0.00393396]
[1755103308166,0.66013034,121260.0,121250.0,0.14057396]
[1755103308374,0.66013034,121260.0,121250.0,0.00393396]
[1755103308583,0.66013034,121260.0,121250.0,0.14053396]
[1755103308784,0.57971591,121260.0,121250.0,0.14053396]
[1755103309186,0.57971591,121260.0,121250.0,0.14049396]
[1755103311032,0.57971591,121260.0,121250.0,0.00393396]
[1755103311408,0.57971591,121260.0,121250.0,0.30433396]
[1755103311623,0.11254941,121260.0,121250.0,0.30433396]
[1755103311830,0.12147689,121260.0,121250.0,1.09772224]
[1755103312039,0.12147689,121260.0,121250.0,1.23452224]
[1755103312245,0.12147689,121260.0,121250.0,0.64895275]
[1755103312657,0.11747689,121260.0,121250.0,0.78467275]
[1755103313082,0.11147689,121260.0,121250.0,0.78467275]
[1755103313279,0.11447689,121260.0,121250.0,0.45131275]
[1755103313492,0.11447689,121260.0,121250.0,0.58803275]
[1755103313699,0.11147689,121260.0,121250.0,0.45031275]
[1755103313906,0.11147689,121260.0,121250.0,0.00580396]
[1755103314112,0.11347689,121260.0,121250.0,0.58815275]
[1755103314324,0.11347689,121260.0,121250.0,0.58528275]
[1755103314534,0.11347689,121260.0,121250.0,0.44844275]
[1755103314739,0.11656689,121260.0,121250.0,0.00393396]
[1755103314955,0.11656689,121260.0,121250.0,0.14081396]
[1755103315169,0.11656689,121260.0,121250.0,0.58632275]
[1755103315634,0.11347689,121260.0,121250.0,0.58532275]
[1755103315847,0.11347689,121260.0,121250.0,0.58632275]
[1755103316059,0.11147689,121260.0,121250.0,0.13981396]
[1755103316265,0.11647689,121260.0,121250.0,0.58632275]
[1755103316473,0.11647689,121260.0,121250.0,0.58636275]
[1755103316703,0.11647689,121260.0,121250.0,0.58536275]
[1755103316920,0.12356689,121260.0,121250.0,0.00393396]
[1755103317120,0.13592358,121260.0,121250.0,0.14089396]
[1755103317322,0.11714399,121260.0,121250.0,0.13889396]
[1755103317530,0.11714399,121260.0,121250.0,0.13989396]
[1755103317745,0.12014399,121260.0,121250.0,0.13989396]
[1755103318159,0.12014399,121260.0,121250.0,0.58540275]
[1755103318359,0.11656689,121260.0,121250.0,0.00293396]
[1755103318566,0.17093029,121260.0,121250.0,0.00293396]
[1755103318843,0.13701591,121260.0,121250.0,0.00293396]
[1755103319054,0.13759301,121260.0,121250.0,0.13873396]
[1755103319284,0.13459301,121260.0,121250.0,0.13873396]
[1755103319447,0.14059301,121260.0,121250.0,0.13973396]
[1755103319650,0.13459301,121260.0,121250.0,0.13873396]
[1755103319831,0.13459301,121260.0,121250.0,0.00193396]
[1755103320032,0.14159301,121260.0,121250.0,0.58524275]
[1755103320647,0.14459301,121260.0,121250.0,0.58624275]
[1755103320849,0.13759301,121260.0,121250.0,0.58524275]
[1755103321101,0.13759301,121260.0,121250.0,0.00293396]
[1755103321311,0.13459301,121260.0,121250.0,0.13861396]
[1755103321435,0.13659301,121260.0,121250.0,0.43893396]
[1755103321640,0.13659301,121260.0,121250.0,0.88444275]
[1755103322157,0.14259301,121260.0,121250.0,0.88544275]
[1755103322563,0.14259301,121260.0,121250.0,0.43993396]
[1755103322764,0.14259301,121260.0,121250.0,0.88544275]
[1755103323175,0.15852377,121260.0,121250.0,0.43993396]
[1755103323377,0.15852377,121260.0,121250.0,0.20057396]
[1755103323951,0.16055377,121260.0,121250.0,0.13933396]
[1755103324797,0.14462301,121260.0,121250.0,0.44844275]
[1755103325001,0.14462301,121260.0,121250.0,0.58476275]
[1755103326988,0.14462301,121260.0,121250.0,0.13925396]
[1755103327390,0.14462301,121260.0,121250.0,0.58476275]
[1755103329418,0.16962301,121260.0,121250.0,0.00293396]
[1755103329579,0.23710531,121260.0,121250.0,0.13901396]
[1755103329764,0.23452821,121260.0,121250.0,0.13897396]
[1755103331583,0.23452821,121260.0,121250.0,0.43937396]
[1755103331898,0.23452821,121260.0,121250.0,0.30333396]
[1755103332005,0.23452821,121260.0,121250.0,0.43937396]
[1755103332827,0.23452821,121260.0,121250.0,0.30333396]
[1755103333026,0.23452821,121260.0,121250.0,0.43961396]
[1755103333232,0.23452821,121260.0,121250.0,0.30333396]
[1755103333450,0.23452821,121260.0,121250.0,0.43953396]
[1755103333655,0.23452821,121260.0,121250.0,0.30333396]
[1755103333846,0.59952821,121260.0,121250.0,0.43961396]
[1755103334491,0.59952821,121260.0,121250.0,0.43957396]
[1755103334700,0.47311843,121260.0,121250.0,0.74884275]
[1755103334932,0.12799843,121260.0,121250.0,0.75096275]
[1755103335141,0.12857553,121260.0,121250.0,0.64820275]
[1755103335345,0.13257553,121260.0,121250.0,0.78548275]
[1755103335607,0.13257553,121260.0,121250.0,0.33997396]
[1755103335848,0.15757456,121260.0,121250.0,0.58684275]
[1755103336068,0.15560456,121260.0,121250.0,0.14133396]
[1755103336287,0.15860456,121260.0,121250.0,0.14233396]
[1755103336523,0.15860456,121260.0,121250.0,0.58784275]
[1755103336737,0.11157553,121260.0,121250.0,0.45156275]
[1755103336869,0.11192591,121260.0,121250.0,0.45056275]
[1755103337086,0.13192591,121260.0,121250.0,0.58720275]
[1755103337293,0.13492591,121260.0,121250.0,0.58720275]
[1755103337513,0.13192591,121260.0,121250.0,0.58720275]
[1755103337924,0.11647689,121260.0,121250.0,0.58720275]
[1755103338808,0.11647689,121260.0,121250.0,0.58708275]
[1755103340046,0.11647689,121260.0,121250.0,0.45056275]
[1755103340329,0.10754941,121260.0,121250.0,0.58708275]
[1755103340573,0.10754941,121260.0,121250.0,0.89794154]
[1755103340574,0.08754941,121260.0,121250.0,0.89794154]
[1755103340801,0.11647689,121260.0,121250.0,0.45243275]
[1755103341033,0.11647689,121260.0,121250.0,0.58879275]
[1755103341495,0.11347689,121260.0,121250.0,0.58779275]
[1755103341722,0.11347689,121260.0,121250.0,0.88823275]
[1755103341943,0.11347689,121260.0,121250.0,0.30636396]
[1755103342179,0.11347689,121260.0,121250.0,0.75000275]
[1755103342403,0.11347689,121260.0,121250.0,0.88624275]
[1755103343344,0.11847689,121260.0,121250.0,0.88724275]
[1755103344205,0.11847689,121260.0,121250.0,0.78448275]
[1755103346489,0.11847689,121260.0,121250.0,0.45056275]
[1755103346640,0.11847689,121260.0,121250.0,0.58764275]
[1755103348483,0.11847689,121260.0,121250.0,0.45056275]
[1755103348687,0.11847689,121260.0,121250.0,0.58744275]
[1755103349918,0.11847689,121260.0,121250.0,0.45056275]
[1755103350101,0.11847689,121260.0,121250.0,0.58728275]
[1755103350358,0.11847689,121260.0,121250.0,0.58915275]
[1755103350571,0.10954941,121260.0,121250.0,0.58903275]
[1755103350784,0.11847689,121260.0,121250.0,0.58903275]
[1755103351220,0.11847689,121260.0,121250.0,0.00692396]
[1755103351428,0.12381689,121260.0,121250.0,0.00293396]
[1755103351635,0.12381689,121260.0,121250.0,0.30333396]
[1755103351844,0.12381689,121260.0,121250.0,0.44289396]
[1755103352047,0.14126591,121260.0,121250.0,0.20057396]
[1755103352252,0.19154301,121260.0,121250.0,0.20057396]
[1755103352460,0.18896591,121260.0,121250.0,0.34009396]
[1755103352668,0.2138619,121260.0,121250.0,0.34009396]
[1755103353363,0.2138619,121260.0,121250.0,0.20057396]
[1755103353584,0.26521999,121260.0,121250.0,0.33997396]
[1755103353789,0.3570677,121260.0,121250.0,0.33993396]
[1755103353912,0.3570677,121260.0,121250.0,0.20057396]
[1755103354114,0.3550677,121260.0,121250.0,0.33989396]
[1755103354524,0.3540677,121260.0,121250.0,0.33989396]
[1755103354739,0.3540677,121260.0,121250.0,0.34089396]
[1755103354949,0.3590677,121260.0,121250.0,0.33989396]
[1755103355352,0.3640677,121260.0,121250.0,0.20157396]
[1755103355661,0.7040677,121260.0,121250.0,0.34085396]
[1755103355864,0.67917171,121260.0,121250.0,0.34085396]
[1755103356063,0.00892748,121210.0,121170.0,0.21530221]
[1755103356263,0.09165073,121210.0,121200.0,0.82068006]
[1755103357264,0.09213976,121210.0,121200.0,0.96100006]
[1755103357479,0.09413976,121210.0,121200.0,0.96100006]
[1755103357687,0.11413976,121210.0,121200.0,0.96100006]
[1755103357896,0.11413976,121210.0,121200.0,0.96092006]
[1755103358789,0.08521228,121210.0,121200.0,0.51529127]
[1755103358999,0.10521228,121210.0,121200.0,1.40630885]
[1755103359450,0.10521228,121210.0,121200.0,1.27349443]
[1755103359661,0.11413976,121210.0,121200.0,1.41261443]
[1755103359873,0.11413976,121210.0,121200.0,0.52159685]
[1755103360080,0.11413976,121210.0,121200.0,1.40630885]
[1755103361347,0.11413976,121210.0,121200.0,1.03328758]
[1755103361550,0.11413976,121210.0,121200.0,1.33372758]
[1755103362194,0.11413976,121210.0,121200.0,1.35835624]
[1755103364969,0.10521228,121210.0,121200.0,0.91879624]
[1755103365175,0.11413976,121210.0,121200.0,1.06081248]
[1755103365611,0.10521228,121210.0,121200.0,1.06081248]
[1755103365792,0.11213976,121210.0,121200.0,1.06081248]
[1755103366054,0.11313976,121210.0,121200.0,1.06181248]
[1755103366261,0.11313976,121210.0,121200.0,1.06081248]
[1755103366476,0.11213976,121210.0,121200.0,1.05981248]
[1755103366685,0.08321228,121210.0,121200.0,1.06081248]
[1755103366890,0.10521228,121210.0,121200.0,0.1707949]
[1755103367094,0.11413976,121210.0,121200.0,1.06181248]
[1755103367324,0.09413976,121210.0,121200.0,0.92189248]
[1755103367535,0.01141651,121210.0,121200.0,0.92189248]
[1755103367737,0.00248903,121210.0,121200.0,1.06261248]
[1755103367939,0.00248903,121210.0,121200.0,1.06257248]
[1755103368261,0.00248903,121210.0,121200.0,1.06057248]
[1755103368864,0.00048903,121210.0,121200.0,1.39957248]
[1755103369211,0.00348903,121210.0,121200.0,1.40057248]
[1755103369674,0.00348903,121210.0,121200.0,1.40424346]
[1755103370285,0.00348903,121210.0,121200.0,1.40624346]
[1755103370690,0.00348903,121210.0,121200.0,1.40596346]
[1755103371458,0.00348903,121210.0,121200.0,1.70632346]
[1755103371843,0.00348903,121210.0,121200.0,0.81530588]
[1755103372049,0.00348903,121210.0,121200.0,1.70265248]
[1755103373586,0.00348903,121210.0,121200.0,1.72736848]
[1755103375484,0.00348903,121210.0,121200.0,1.42692848]
[1755103376271,0.00348903,121210.0,121200.0,1.44566414]
[1755103376634,0.00348903,121210.0,121200.0,1.46299316]
[1755103376854,0.00348903,121210.0,121200.0,1.32479316]
[1755103377027,0.00348903,121210.0,121200.0,1.46299316]
[1755103377472,0.00348903,121210.0,121200.0,1.32479316]
[1755103377687,0.01192748,121230.0,121200.0,0.29462307]
[1755103377832,0.01192748,121230.0,121220.0,0.44550879]
[1755103378033,0.01192748,121230.0,121220.0,0.58354879]
[1755103378474,0.01192748,121230.0,121220.0,0.58350879]
[1755103379165,0.01592748,121230.0,121220.0,0.58450879]
[1755103379366,0.01592748,121230.0,121220.0,0.92450879]
[1755103379568,0.01592748,121230.0,121220.0,0.92438879]
[1755103380312,0.007,121230.0,121220.0,0.78650879]
[1755103380517,0.007,121230.0,121220.0,0.92430879]
[1755103380693,0.007,121230.0,121220.0,0.61618617]
[1755103380839,0.007,121230.0,121220.0,0.77869617]
[1755103381051,0.007,121230.0,121220.0,0.64089617]
[1755103381293,0.008,121230.0,121220.0,0.77861617]
[1755103381623,0.008,121230.0,121220.0,1.18177617]
[1755103381965,0.008,121230.0,121220.0,1.35209879]
[1755103382168,0.008,121230.0,121220.0,1.11161879]
[1755103382388,0.008,121230.0,121220.0,1.00885879]
[1755103382878,0.008,121230.0,121220.0,0.81121879]
[1755103383007,0.008,121230.0,121220.0,0.94877879]
[1755103383425,0.01692748,121230.0,121220.0,0.94877879]
[1755103383680,0.01692748,121230.0,121220.0,0.94893879]
[1755103383861,0.008,121230.0,121220.0,0.81121879]
[1755103384074,0.01692748,121230.0,121220.0,0.81121879]
[1755103384230,0.01692748,121230.0,121220.0,0.94897879]
[1755103384439,0.01692748,121230.0,121220.0,0.81121879]
[1755103384762,0.01692748,121230.0,121220.0,0.94893879]
[1755103385002,0.01692748,121230.0,121220.0,0.81121879]
[1755103385184,0.008,121230.0,121220.0,0.94901879]
[1755103385396,0.01692748,121230.0,121220.0,0.50351]
[1755103385596,0.01692748,121230.0,121220.0,0.94905879]
[1755103386047,0.01692748,121230.0,121220.0,0.81121879]
[1755103386207,0.01692748,121230.0,121220.0,0.94905879]
[1755103386967,0.01692748,121230.0,121220.0,0.95992346]
[1755103387172,0.01692748,121230.0,121220.0,0.96076346]
[1755103387585,0.01692748,121230.0,121220.0,0.50439]
[1755103388980,0.01692748,121230.0,121220.0,0.36571]
[1755103389176,0.01692748,121230.0,121220.0,0.50407]
[1755103390400,0.01692748,121230.0,121220.0,0.50391]
[1755103390988,0.008,121230.0,121220.0,0.50391]
[1755103391230,0.01692748,121230.0,121220.0,0.50391]
[1755103391524,0.01692748,121230.0,121220.0,0.80431]
[1755103391908,0.01692748,121230.0,121220.0,0.80411]
[1755103392060,0.01692748,121230.0,121220.0,0.70135]
[1755103392675,0.01692748,121230.0,121220.0,0.50363]
[1755103393309,0.008,121230.0,121220.0,0.36571]
[1755103393544,0.01986748,121230.0,121220.0,0.50355]
[1755103394918,0.01986748,121230.0,121220.0,0.36571]
[1755103395264,0.01986748,121230.0,121220.0,0.50347]
[1755103395471,0.11574325,121230.0,121220.0,0.36571]
[1755103395672,0.17011073,121230.0,121220.0,0.001]
[1755103395832,0.17011073,121230.0,121220.0,0.13872]
[1755103396564,0.17011073,121230.0,121220.0,0.47872]
[1755103396916,0.12467073,121230.0,121220.0,0.47872]
[1755103397124,0.12467073,121230.0,121220.0,0.341]
[1755103397397,0.12467073,121230.0,121220.0,0.47876]
[1755103397942,0.12467073,121230.0,121220.0,0.341]
[1755103398157,0.12467073,121230.0,121220.0,0.47916]
[1755103399065,0.12467073,121230.0,121220.0,0.341]
[1755103399483,0.12467073,121230.0,121220.0,0.47912]
[1755103400512,0.12467073,121230.0,121220.0,0.341]
[1755103400732,0.12467073,121230.0,121220.0,0.479]
[1755103401196,0.12467073,121230.0,121220.0,0.341]
[1755103401441,0.12467073,121230.0,121220.0,0.47896]
[1755103401669,0.12467073,121230.0,121220.0,0.77936]
[1755103402614,0.12467073,121230.0,121220.0,1.09784917]
[1755103402827,0.12467073,121230.0,121220.0,1.13288917]
[1755103403217,0.12467073,121230.0,121220.0,0.67644]
[1755103403426,0.12467073,121230.0,121220.0,1.13288917]
[1755103404088,0.12467073,121230.0,121220.0,0.99508917]
[1755103404294,0.12467073,121230.0,121220.0,0.79744917]
[1755103404502,0.12467073,121230.0,121220.0,0.93508917]
[1755103404717,0.12467073,121230.0,121220.0,0.79744917]
[1755103405166,0.12467073,121230.0,121220.0,0.93504917]
[1755103405944,0.12467073,121230.0,121220.0,0.4786]
[1755103406151,0.12467073,121230.0,121220.0,0.93504917]
[1755103406353,0.12467073,121230.0,121220.0,0.79744917]
[1755103406559,0.12467073,121230.0,121220.0,0.93500917]
[1755103406756,0.12467073,121230.0,121220.0,0.341]
[1755103407158,0.19214031,121230.0,121220.0,0.001]
[1755103407341,0.18956257,121230.0,121220.0,0.13832]
[1755103407545,0.17011073,121230.0,121220.0,0.13832]
[1755103407780,0.00892748,121210.0,121200.0,0.49021993]
[1755103407986,0.09667073,121210.0,121200.0,0.49021993]
[1755103408178,0.09667073,121210.0,121200.0,0.03377076]
[1755103408387,0.09567073,121210.0,121200.0,0.49021993]
[1755103408755,0.09567073,121210.0,121200.0,0.9466691]
[1755103408980,0.09667073,121210.0,121200.0,0.51253076]
[1755103409189,0.11667073,121210.0,121200.0,1.4264291]
[1755103409397,0.11165073,121210.0,121200.0,1.2886691]
[1755103409818,0.00892748,121210.0,121200.0,1.4264291]
[1755103410025,0.00892748,121210.0,121200.0,1.2886691]
[1755103410238,0.00892748,121210.0,121200.0,1.4263891]
[1755103411287,0.001,121210.0,121200.0,1.2886691]
[1755103411494,0.00892748,121210.0,121200.0,1.8295491]
[1755103411947,0.001,121210.0,121200.0,1.5890691]
[1755103412154,0.001,121210.0,121200.0,1.6243491]
[1755103413225,0.00892748,121210.0,121200.0,1.6243491]
[1755103413675,0.00892748,121210.0,121200.0,1.4267091]
[1755103414102,0.01423748,121210.0,121200.0,1.2886691]
[1755103414330,0.01423748,121210.0,121200.0,0.83221993]
[1755103414569,0.01212748,121210.0,121200.0,1.2886691]
[1755103414794,0.00892748,121210.0,121200.0,1.4265491]
[1755103415018,0.001,121210.0,121200.0,1.4265491]
[1755103415228,0.00892748,121210.0,121200.0,1.4265491]
[1755103415452,0.00892748,121210.0,121200.0,1.4497091]
[1755103416784,0.00892748,121210.0,121200.0,1.4495091]
[1755103417667,0.001,121210.0,121200.0,1.4493891]
[1755103418772,0.001,121210.0,121200.0,1.41576567]
[1755103419870,0.001,121210.0,121200.0,1.31223911]
[1755103420092,0.00892748,121210.0,121200.0,1.44951911]
[1755103421628,0.00892748,121210.0,121200.0,1.85267911]
[1755103422254,0.0042,121210.0,121200.0,1.85267911]
[1755103422464,0.01212748,121210.0,121200.0,1.85267911]
[1755103422668,0.01423748,121210.0,121200.0,1.44919911]
[1755103423233,0.01212748,121210.0,121200.0,1.44919911]
[1755103425706,0.01212748,121210.0,121200.0,1.31223911]
[1755103425881,0.00892748,121210.0,121200.0,1.44903911]
[1755103426077,0.00892748,121210.0,121200.0,1.31223911]
[1755103426291,0.00892748,121210.0,121200.0,1.44903911]
[1755103427062,0.00892748,121210.0,121200.0,1.44899911]
[1755103427285,0.01212748,121210.0,121200.0,1.44899911]
[1755103428132,0.001,121210.0,121200.0,1.44899911]
[1755103429198,0.001,121210.0,121200.0,1.31223911]
[1755103429424,0.001,121210.0,121200.0,1.44883911]
[1755103429885,0.001,121210.0,121200.0,1.44875911]
[1755103430107,0.01212748,121210.0,121200.0,1.44875911]
[1755103430512,0.01212748,121210.0,121200.0,1.31223911]
[1755103430741,0.01423748,121210.0,121200.0,1.44875911]
[1755103431462,0.01423748,121210.0,121200.0,1.55151911]
[1755103431673,0.01423748,121210.0,121200.0,1.61263911]
[1755103431896,0.11696073,121210.0,121200.0,1.13298994]
[1755103432136,0.11696073,121210.0,121200.0,1.26930994]
[1755103432351,0.16532073,121210.0,121200.0,0.37614077]
[1755103432702,0.16532073,121210.0,121200.0,0.96494641]
[1755103432915,0.16532073,121210.0,121200.0,0.37225724]
[1755103433110,0.16532073,121210.0,121200.0,0.96494641]
[1755103434103,0.16532073,121210.0,121200.0,0.96482641]
[1755103434618,0.16532073,121210.0,121200.0,0.50837724]
[1755103435061,0.16532073,121210.0,121200.0,0.37225724]
[1755103435254,0.16532073,121210.0,121200.0,0.50833724]
[1755103435500,0.16532073,121210.0,121200.0,0.50733724]
[1755103435701,0.16532073,121210.0,121200.0,0.50729724]
[1755103435911,0.16532073,121210.0,121190.0,0.002]
[1755103435912,0.02792748,121200.0,121190.0,0.002]
[1755103436125,0.68919599,121200.0,121190.0,0.00248903]
[1755103436334,0.68661761,121200.0,121190.0,0.13844903]
[1755103436925,0.23016844,121200.0,121190.0,0.13840903]
[1755103437331,0.23316844,121200.0,121190.0,0.13940903]
[1755103438070,0.23416844,121200.0,121190.0,0.00348903]
[1755103438320,0.23416844,121200.0,121190.0,0.13924903]
[1755103440832,0.23416844,121200.0,121190.0,0.13916903]
[1755103441040,0.23416844,121200.0,121190.0,0.13904903]
[1755103441246,0.16732073,121200.0,121190.0,0.13904903]
[1755103441459,0.45544676,121200.0,121190.0,0.13904903]
[1755103441663,0.43362073,121200.0,121190.0,0.30400903]
[1755103441890,0.42569325,121200.0,121190.0,0.43956903]
[1755103442148,0.43362073,121200.0,121190.0,0.43956903]
[1755103443426,0.43362073,121200.0,121190.0,0.30400903]
[1755103443597,0.43362073,121200.0,121190.0,0.20120903]
[1755103443826,0.43362073,121200.0,121190.0,0.33692903]